[Event "Titled Tuesday Blitz August 16 Early 2022"]
[White "Floresvillar Gonzalez, Luis Migu"]
[Black "Cannon, David"]
[WhiteFideId "5100542"]
[BlackFideId "3213110"]
[WhiteElo "2040"]
[BlackElo "1901"]
[Result "1-0"]
[Round "03"]
[TimeControl "180+2"]
[Date "2022.08.18"]
[WhiteClock "0:00:00"]
[BlackClock "0:00:00"]

1. d4 {[%clk 0:00:00]}  d5 {[%clk 0:00:00]} 2. c3 {[%clk 0:00:00]}  Nf6 {[%clk 0:00:00]} 3. Bg5 {[%clk 0:00:00]}  e6 {[%clk 0:00:00]} 4. Nd2 {[%clk 0:00:00]}  Be7 {[%clk 0:00:00]} 5. Ngf3 {[%clk 0:00:00]}  O-O {[%clk 0:00:00]} 6. e3 {[%clk 0:00:00]}  b6 {[%clk 0:00:00]} 7. Bd3 {[%clk 0:00:00]}  Ba6 {[%clk 0:00:00]} 8. Qc2 {[%clk 0:00:00]}  Bxd3 {[%clk 0:00:00]} 9. Qxd3 {[%clk 0:00:00]}  Nbd7 {[%clk 0:00:00]} 10. O-O {[%clk 0:00:00]}  c5 {[%clk 0:00:00]} 11. Rae1 {[%clk 0:00:00]}  h6 {[%clk 0:00:00]} 12. Bh4 {[%clk 0:00:00]}  cxd4 {[%clk 0:00:00]} 13. exd4 {[%clk 0:00:00]}  Ng4 {[%clk 0:00:00]} 14. Bxe7 {[%clk 0:00:00]}  Qxe7 {[%clk 0:00:00]} 15. h3 {[%clk 0:00:00]}  Ngf6 {[%clk 0:00:00]} 16. Ne5 {[%clk 0:00:00]}  Nxe5 {[%clk 0:00:00]} 17. Rxe5 {[%clk 0:00:00]}  b5 {[%clk 0:00:00]} 18. a3 {[%clk 0:00:00]}  a5 {[%clk 0:00:00]} 19. b4 {[%clk 0:00:00]}  axb4 {[%clk 0:00:00]} 20. axb4 {[%clk 0:00:00]}  Ra3 {[%clk 0:00:00]} 21. Re3 {[%clk 0:00:00]}  Qb7 {[%clk 0:00:00]} 22. Rc1 {[%clk 0:00:00]}  Rfa8 {[%clk 0:00:00]} 23. g3 {[%clk 0:00:00]}  Qc6 {[%clk 0:00:00]} 24. Kg2 {[%clk 0:00:00]}  Nd7 {[%clk 0:00:00]} 25. Nf3 {[%clk 0:00:00]}  Rc8 {[%clk 0:00:00]} 26. Ne5 {[%clk 0:00:00]}  Nxe5 {[%clk 0:00:00]} 27. dxe5 {[%clk 0:00:00]}  Qc4 {[%clk 0:00:00]} 28. Qxc4 {[%clk 0:00:00]}  Rxc4 {[%clk 0:00:00]} 29. Rc2 {[%clk 0:00:00]}  d4 {[%clk 0:00:00]} 30. Rd3 {[%clk 0:00:00]}  Raxc3 {[%clk 0:00:00]} 31. Rdxc3 {[%clk 0:00:00]}  Rxc3 {[%clk 0:00:00]} 32. Rd2 {[%clk 0:00:00]}  Rc4 {[%clk 0:00:00]} 33. Rb2 {[%clk 0:00:00]}  f6 {[%clk 0:00:00]} 34. exf6 {[%clk 0:00:00]}  gxf6 {[%clk 0:00:00]} 35. Kf3 {[%clk 0:00:00]}  Kf7 {[%clk 0:00:00]} 36. Ke4 {[%clk 0:00:00]}  Ke7 {[%clk 0:00:00]} 37. f4 {[%clk 0:00:00]}  Kd6 {[%clk 0:00:00]} 38. g4 {[%clk 0:00:00]}  e5 {[%clk 0:00:00]} 39. fxe5+ {[%clk 0:00:00]}  fxe5 {[%clk 0:00:00]} 40. h4 {[%clk 0:00:00]}  Rc3 {[%clk 0:00:00]} 41. g5 {[%clk 0:00:00]}  hxg5 {[%clk 0:00:00]} 42. hxg5 {[%clk 0:00:00]}  Re3+ {[%clk 0:00:00]} 43. Kf5 {[%clk 0:00:00]}  Rf3+ {[%clk 0:00:00]} 44. Kg4 {[%clk 0:00:00]}  Rf4+ {[%clk 0:00:00]} 45. Kh5 {[%clk 0:00:00]}  e4 {[%clk 0:00:00]} 46. g6 {[%clk 0:00:00]}  Ke7 {[%clk 0:00:00]} 47. Rg2 {[%clk 0:00:00]}  Kf8 {[%clk 0:00:00]} 48. g7+ {[%clk 0:00:00]}  Kg8 {[%clk 0:00:00]} 49. Kg5 {[%clk 0:00:00]}  Rf1 {[%clk 0:00:00]} 50. Kg6 {[%clk 0:00:00]}  d3 {[%clk 0:00:00]} 51. Rg4 {[%clk 0:00:00]}  d2 {[%clk 0:00:00]} 52. Rxe4 {[%clk 0:00:00]}  Rg1+ {[%clk 0:00:00]} 53. Kf6 {[%clk 0:00:00]}  d1=Q {[%clk 0:00:00]} 54. Re8+ {[%clk 0:00:00]}  Kh7 {[%clk 0:00:00]} 55. Rh8# {[%clk 0:00:00]} 1-0


[Site "https://www.chess.com"]

[Event "Titled Tuesday Blitz August 16 Early 2022"]
[White "Goldin, Roman"]
[Black "Dounis, Alexandros"]
[WhiteFideId "2803860"]
[BlackFideId "4213238"]
[WhiteElo "2312"]
[BlackElo "2204"]
[Result "0-1"]
[Round "03"]
[TimeControl "180+2"]
[Date "2022.08.18"]
[WhiteClock "0:00:00"]
[BlackClock "0:00:00"]

1. Nf3 {[%clk 0:00:00]}  Nf6 {[%clk 0:00:00]} 2. g3 {[%clk 0:00:00]}  g6 {[%clk 0:00:00]} 3. Bg2 {[%clk 0:00:00]}  Bg7 {[%clk 0:00:00]} 4. O-O {[%clk 0:00:00]}  O-O {[%clk 0:00:00]} 5. d4 {[%clk 0:00:00]}  d5 {[%clk 0:00:00]} 6. c4 {[%clk 0:00:00]}  c6 {[%clk 0:00:00]} 7. Nc3 {[%clk 0:00:00]}  dxc4 {[%clk 0:00:00]} 8. Ne5 {[%clk 0:00:00]}  Nfd7 {[%clk 0:00:00]} 9. Nxc4 {[%clk 0:00:00]}  Nb6 {[%clk 0:00:00]} 10. Na5 {[%clk 0:00:00]}  Qxd4 {[%clk 0:00:00]} 11. Qb3 {[%clk 0:00:00]}  Be6 {[%clk 0:00:00]} 12. Qa3 {[%clk 0:00:00]}  Nc4 {[%clk 0:00:00]} 13. Nxc4 {[%clk 0:00:00]}  Qxc4 {[%clk 0:00:00]} 14. Qxe7 {[%clk 0:00:00]}  Nd7 {[%clk 0:00:00]} 15. Bd2 {[%clk 0:00:00]}  Rfe8 {[%clk 0:00:00]} 16. Qg5 {[%clk 0:00:00]}  h6 {[%clk 0:00:00]} 17. Qa5 {[%clk 0:00:00]}  b6 {[%clk 0:00:00]} 18. Qa4 {[%clk 0:00:00]}  Qxa4 {[%clk 0:00:00]} 19. Nxa4 {[%clk 0:00:00]}  Rac8 {[%clk 0:00:00]} 20. Bc3 {[%clk 0:00:00]}  Bc4 {[%clk 0:00:00]} 21. Rfd1 {[%clk 0:00:00]}  Ne5 {[%clk 0:00:00]} 22. Bxe5 {[%clk 0:00:00]}  Bxe5 {[%clk 0:00:00]} 23. Rd7 {[%clk 0:00:00]}  b5 {[%clk 0:00:00]} 24. Nc3 {[%clk 0:00:00]}  b4 {[%clk 0:00:00]} 25. Nd1 {[%clk 0:00:00]}  Bxe2 {[%clk 0:00:00]} 26. Rxa7 {[%clk 0:00:00]}  Bd4 {[%clk 0:00:00]} 27. Rd7 {[%clk 0:00:00]}  c5 {[%clk 0:00:00]} 28. Bd5 {[%clk 0:00:00]}  Rf8 {[%clk 0:00:00]} 29. Rc1 {[%clk 0:00:00]}  Kg7 {[%clk 0:00:00]} 30. Kg2 {[%clk 0:00:00]}  Rcd8 {[%clk 0:00:00]} 31. Rxd8 {[%clk 0:00:00]}  Rxd8 {[%clk 0:00:00]} 32. Bf3 {[%clk 0:00:00]}  Bb5 {[%clk 0:00:00]} 33. b3 {[%clk 0:00:00]}  Re8 {[%clk 0:00:00]} 34. Rc2 {[%clk 0:00:00]}  Re1 {[%clk 0:00:00]} 35. Ne3 {[%clk 0:00:00]}  Ra1 {[%clk 0:00:00]} 36. Nc4 {[%clk 0:00:00]}  Kf6 {[%clk 0:00:00]} 37. h3 {[%clk 0:00:00]}  h5 {[%clk 0:00:00]} 38. Be2 {[%clk 0:00:00]}  Bc6+ {[%clk 0:00:00]} 39. Bf3 {[%clk 0:00:00]}  Bd7 {[%clk 0:00:00]} 40. h4 {[%clk 0:00:00]}  Bf5 {[%clk 0:00:00]} 41. Rd2 {[%clk 0:00:00]}  Bc3 {[%clk 0:00:00]} 42. Re2 {[%clk 0:00:00]}  Kg7 {[%clk 0:00:00]} 43. Be4 {[%clk 0:00:00]}  Bxe4+ {[%clk 0:00:00]} 44. Rxe4 {[%clk 0:00:00]}  Rxa2 {[%clk 0:00:00]} 45. Re7 {[%clk 0:00:00]}  Rc2 {[%clk 0:00:00]} 46. Nd6 {[%clk 0:00:00]}  Kf6 {[%clk 0:00:00]} 47. Rxf7+ {[%clk 0:00:00]}  Ke6 {[%clk 0:00:00]} 0-1


[Site "https://www.chess.com"]

[Event "Titled Tuesday Blitz August 16 Early 2022"]
[White "Goltseva, Ekaterina"]
[Black "Marin Ramirez, Gerardo"]
[WhiteFideId "24173770"]
[BlackFideId "3901068"]
[WhiteElo "2086"]
[BlackElo "1920"]
[Result "1-0"]
[Round "03"]
[TimeControl "180+2"]
[Date "2022.08.18"]
[WhiteClock "0:00:00"]
[BlackClock "0:00:00"]

1. d4 {[%clk 0:00:00]}  d5 {[%clk 0:00:00]} 2. c4 {[%clk 0:00:00]}  c6 {[%clk 0:00:00]} 3. cxd5 {[%clk 0:00:00]}  cxd5 {[%clk 0:00:00]} 4. Bf4 {[%clk 0:00:00]}  Nf6 {[%clk 0:00:00]} 5. Nc3 {[%clk 0:00:00]}  a6 {[%clk 0:00:00]} 6. e3 {[%clk 0:00:00]}  Bf5 {[%clk 0:00:00]} 7. Qb3 {[%clk 0:00:00]}  b5 {[%clk 0:00:00]} 8. a4 {[%clk 0:00:00]}  Qa5 {[%clk 0:00:00]} 9. Rc1 {[%clk 0:00:00]}  b4 {[%clk 0:00:00]} 10. Na2 {[%clk 0:00:00]}  Nbd7 {[%clk 0:00:00]} 11. Bc7 {[%clk 0:00:00]}  Nb6 {[%clk 0:00:00]} 12. Qxb4 {[%clk 0:00:00]}  Qxb4+ {[%clk 0:00:00]} 13. Nxb4 {[%clk 0:00:00]}  Nxa4 {[%clk 0:00:00]} 14. b3 {[%clk 0:00:00]}  Nb2 {[%clk 0:00:00]} 15. Kd2 {[%clk 0:00:00]}  Kd7 {[%clk 0:00:00]} 16. Bxa6 {[%clk 0:00:00]}  e5 {[%clk 0:00:00]} 17. Bb5+ {[%clk 0:00:00]}  Ke6 {[%clk 0:00:00]} 18. Rc6+ {[%clk 0:00:00]}  Kd7 {[%clk 0:00:00]} 19. Rxf6+ {[%clk 0:00:00]}  Kxc7 {[%clk 0:00:00]} 20. Rxf5 {[%clk 0:00:00]}  Bxb4+ {[%clk 0:00:00]} 21. Kc2 {[%clk 0:00:00]}  Ra2 {[%clk 0:00:00]} 22. Kb1 {[%clk 0:00:00]}  Ra5 {[%clk 0:00:00]} 23. Rxf7+ {[%clk 0:00:00]}  Kb6 {[%clk 0:00:00]} 24. Kxb2 {[%clk 0:00:00]}  Kxb5 {[%clk 0:00:00]} 25. Rb7+ {[%clk 0:00:00]}  Ka6 {[%clk 0:00:00]} 26. Rxb4 {[%clk 0:00:00]} 1-0


[Site "https://www.chess.com"]

[Event "Titled Tuesday Blitz August 16 Early 2022"]
[White "Gubajdullin, Alexei"]
[Black "Ciuffoletti, Paolo"]
[WhiteFideId "4141202"]
[BlackFideId "807630"]
[WhiteElo "2214"]
[BlackElo "2143"]
[Result "1-0"]
[Round "03"]
[TimeControl "180+2"]
[Date "2022.08.18"]
[WhiteClock "0:00:00"]
[BlackClock "0:00:00"]

1. Nf3 {[%clk 0:00:00]}  d5 {[%clk 0:00:00]} 2. g3 {[%clk 0:00:00]}  g6 {[%clk 0:00:00]} 3. Bg2 {[%clk 0:00:00]}  Bg7 {[%clk 0:00:00]} 4. O-O {[%clk 0:00:00]}  Nf6 {[%clk 0:00:00]} 5. c4 {[%clk 0:00:00]}  c6 {[%clk 0:00:00]} 6. d4 {[%clk 0:00:00]}  dxc4 {[%clk 0:00:00]} 7. Na3 {[%clk 0:00:00]}  Be6 {[%clk 0:00:00]} 8. Ng5 {[%clk 0:00:00]}  Bc8 {[%clk 0:00:00]} 9. Nxc4 {[%clk 0:00:00]}  Nbd7 {[%clk 0:00:00]} 10. Qb3 {[%clk 0:00:00]}  O-O {[%clk 0:00:00]} 11. Ne5 {[%clk 0:00:00]}  Nxe5 {[%clk 0:00:00]} 12. dxe5 {[%clk 0:00:00]}  Nd5 {[%clk 0:00:00]} 13. e4 {[%clk 0:00:00]}  Nc7 {[%clk 0:00:00]} 14. Rd1 {[%clk 0:00:00]}  Qe8 {[%clk 0:00:00]} 15. f4 {[%clk 0:00:00]}  h6 {[%clk 0:00:00]} 16. Nf3 {[%clk 0:00:00]}  b6 {[%clk 0:00:00]} 17. Be3 {[%clk 0:00:00]}  Be6 {[%clk 0:00:00]} 18. Qc2 {[%clk 0:00:00]}  c5 {[%clk 0:00:00]} 19. f5 {[%clk 0:00:00]}  Bd7 {[%clk 0:00:00]} 20. Rd2 {[%clk 0:00:00]}  Bc6 {[%clk 0:00:00]} 21. Rad1 {[%clk 0:00:00]}  Qc8 {[%clk 0:00:00]} 22. e6 {[%clk 0:00:00]}  fxe6 {[%clk 0:00:00]} 23. fxg6 {[%clk 0:00:00]}  Qb7 {[%clk 0:00:00]} 24. Nh4 {[%clk 0:00:00]}  Nb5 {[%clk 0:00:00]} 25. Qc4 {[%clk 0:00:00]}  Nd4 {[%clk 0:00:00]} 26. Nf5 {[%clk 0:00:00]}  Nxf5 {[%clk 0:00:00]} 27. Qxe6+ {[%clk 0:00:00]}  Kh8 {[%clk 0:00:00]} 28. exf5 {[%clk 0:00:00]}  Bxg2 {[%clk 0:00:00]} 29. Rxg2 {[%clk 0:00:00]}  Rad8 {[%clk 0:00:00]} 30. Rf1 {[%clk 0:00:00]}  Rd3 {[%clk 0:00:00]} 31. f6 {[%clk 0:00:00]} 1-0


[Site "https://www.chess.com"]

[Event "Titled Tuesday Blitz August 16 Early 2022"]
[White "Harshavardhan G B"]
[Black "Salem, A.R. Saleh"]
[WhiteFideId "25059009"]
[BlackFideId "9301348"]
[WhiteElo "1890"]
[BlackElo "2674"]
[Result "0-1"]
[Round "03"]
[TimeControl "180+1"]
[Date "2022.08.16"]
[WhiteClock "0:00:05"]
[BlackClock "0:00:09"]

1. d4 {[%clk 0:03:00]}  d5 {[%clk 0:02:55]} 2. c4 {[%clk 0:03:00]}  e6 {[%clk 0:02:56]} 3. Nc3 {[%clk 0:02:59]}  Nf6 {[%clk 0:02:57]} 4. cxd5 {[%clk 0:02:57]}  exd5 {[%clk 0:02:57]} 5. Bg5 {[%clk 0:02:57]}  c6 {[%clk 0:02:58]} 6. e3 {[%clk 0:02:57]}  h6 {[%clk 0:02:59]} 7. Bh4 {[%clk 0:02:57]}  Bd6 {[%clk 0:02:59]} 8. Bd3 {[%clk 0:02:55]}  O-O {[%clk 0:03:00]} 9. Nge2 {[%clk 0:02:54]}  Re8 {[%clk 0:02:58]} 10. O-O {[%clk 0:02:53]}  Bxh2+ {[%clk 0:02:58]} 11. Kxh2 {[%clk 0:02:53]}  Ng4+ {[%clk 0:02:59]} 12. Kg3 {[%clk 0:02:45]}  g5 {[%clk 0:02:59]} 13. Nf4 {[%clk 0:02:25]}  gxh4+ {[%clk 0:02:49]} 14. Kf3 {[%clk 0:02:24]}  Qg5 {[%clk 0:02:47]} 15. Rh1 {[%clk 0:02:21]}  Nxe3 {[%clk 0:02:16]} 16. fxe3 {[%clk 0:02:09]}  Qg3+ {[%clk 0:02:13]} 17. Ke2 {[%clk 0:02:09]}  Bg4+ {[%clk 0:02:11]} 18. Kf1 {[%clk 0:01:58]}  Bxd1 {[%clk 0:02:11]} 19. Rh3 {[%clk 0:01:58]}  Qg5 {[%clk 0:01:56]} 20. Rxd1 {[%clk 0:01:58]}  Nd7 {[%clk 0:01:53]} 21. Kf2 {[%clk 0:01:51]}  Nf6 {[%clk 0:01:52]} 22. Be2 {[%clk 0:01:50]}  Rxe3 {[%clk 0:01:44]} 23. Kxe3 {[%clk 0:01:38]}  Re8+ {[%clk 0:01:43]} 24. Kd2 {[%clk 0:01:38]}  Qxf4+ {[%clk 0:01:42]} 25. Kc2 {[%clk 0:01:38]}  Ne4 {[%clk 0:01:21]} 26. Bd3 {[%clk 0:01:14]}  Ng5 {[%clk 0:01:02]} 27. Rhh1 {[%clk 0:01:10]}  Re3 {[%clk 0:01:00]} 28. Rhf1 {[%clk 0:01:05]}  Qg4 {[%clk 0:00:49]} 29. Rd2 {[%clk 0:01:02]}  Ne4 {[%clk 0:00:34]} 30. Bxe4 {[%clk 0:00:54]}  dxe4 {[%clk 0:00:33]} 31. Rdf2 {[%clk 0:00:55]}  Qg6 {[%clk 0:00:28]} 32. Kb3 {[%clk 0:00:45]}  Rg3 {[%clk 0:00:20]} 33. Rf6 {[%clk 0:00:43]}  Qg7 {[%clk 0:00:20]} 34. Rd6 {[%clk 0:00:40]}  Rxg2 {[%clk 0:00:15]} 35. Nxe4 {[%clk 0:00:39]}  Rg6 {[%clk 0:00:11]} 36. Nf6+ {[%clk 0:00:36]}  Rxf6 {[%clk 0:00:11]} 37. Rdxf6 {[%clk 0:00:36]}  h3 {[%clk 0:00:11]} 38. R6f3 {[%clk 0:00:32]}  h2 {[%clk 0:00:10]} 39. Rh1 {[%clk 0:00:29]}  Qg2 {[%clk 0:00:10]} 40. Rff1 {[%clk 0:00:29]}  Kf8 {[%clk 0:00:10]} 41. Kc3 {[%clk 0:00:28]}  Ke7 {[%clk 0:00:10]} 42. a4 {[%clk 0:00:28]}  a5 {[%clk 0:00:10]} 43. b3 {[%clk 0:00:27]}  f5 {[%clk 0:00:11]} 44. Kd3 {[%clk 0:00:26]}  f4 {[%clk 0:00:11]} 45. Re1+ {[%clk 0:00:20]}  Kd6 {[%clk 0:00:11]} 46. Ref1 {[%clk 0:00:21]}  f3 {[%clk 0:00:11]} 47. Ke3 {[%clk 0:00:21]}  Kd5 {[%clk 0:00:11]} 48. Rc1 {[%clk 0:00:20]}  b6 {[%clk 0:00:10]} 49. Rce1 {[%clk 0:00:19]}  h5 {[%clk 0:00:11]} 50. Kd3 {[%clk 0:00:17]}  h4 {[%clk 0:00:11]} 51. Re5+ {[%clk 0:00:16]}  Kd6 {[%clk 0:00:11]} 52. Ree1 {[%clk 0:00:17]}  h3 {[%clk 0:00:11]} 53. Ref1 {[%clk 0:00:17]}  f2 {[%clk 0:00:11]} 54. Ke3 {[%clk 0:00:16]}  Kd5 {[%clk 0:00:11]} 55. Ke2 {[%clk 0:00:14]}  Ke4 {[%clk 0:00:10]} 56. Kd2 {[%clk 0:00:14]}  Kxd4 {[%clk 0:00:10]} 57. Ke2 {[%clk 0:00:14]}  Kc5 {[%clk 0:00:11]} 58. Kd2 {[%clk 0:00:13]}  Kb4 {[%clk 0:00:11]} 59. Kc2 {[%clk 0:00:14]}  Qe4+ {[%clk 0:00:10]} 60. Kd2 {[%clk 0:00:14]}  Qd5+ {[%clk 0:00:11]} 61. Ke2 {[%clk 0:00:14]}  Qg2 {[%clk 0:00:11]} 62. Ke3 {[%clk 0:00:12]}  Kxb3 {[%clk 0:00:11]} 63. Kd4 {[%clk 0:00:12]}  Qg4+ {[%clk 0:00:10]} 64. Ke3 {[%clk 0:00:12]}  Qg3+ {[%clk 0:00:09]} 65. Kd4 {[%clk 0:00:11]}  Qf4+ {[%clk 0:00:09]} 66. Kd3 {[%clk 0:00:11]}  Kxa4 {[%clk 0:00:09]} 67. Rb1 {[%clk 0:00:11]}  Qf5+ {[%clk 0:00:08]} 68. Kc3 {[%clk 0:00:11]}  Qc5+ {[%clk 0:00:08]} 69. Kd3 {[%clk 0:00:11]}  Qd5+ {[%clk 0:00:08]} 70. Kc3 {[%clk 0:00:11]}  Qf3+ {[%clk 0:00:09]} 71. Kc4 {[%clk 0:00:10]}  Qe4+ {[%clk 0:00:09]} 72. Kc3 {[%clk 0:00:11]}  Qe5+ {[%clk 0:00:08]} 73. Kd3 {[%clk 0:00:10]}  b5 {[%clk 0:00:08]} 74. Rhc1 {[%clk 0:00:08]}  b4 {[%clk 0:00:08]} 75. Kc4 {[%clk 0:00:08]}  Qe4+ {[%clk 0:00:08]} 76. Kc5 {[%clk 0:00:07]}  Qd5+ {[%clk 0:00:09]} 77. Kb6 {[%clk 0:00:08]}  Qb5+ {[%clk 0:00:09]} 78. Kc7 {[%clk 0:00:08]}  b3 {[%clk 0:00:10]} 79. Rxc6 {[%clk 0:00:05]}  Qe5+ {[%clk 0:00:09]} 80. Kb7 {[%clk 0:00:05]}  Qb5+ {[%clk 0:00:09]} 81. Kc7 {[%clk 0:00:05]}  f1=Q {[%clk 0:00:09]} 0-1


[Site "https://www.chess.com"]

[Event "Titled Tuesday Blitz August 16 Early 2022"]
[White "Horak, Martin"]
[Black "Shapiro, Daniel"]
[WhiteFideId "367095"]
[BlackFideId "2001780"]
[WhiteElo "1997"]
[BlackElo "2284"]
[Result "0-1"]
[Round "03"]
[TimeControl "180+2"]
[Date "2022.08.18"]
[WhiteClock "0:00:00"]
[BlackClock "0:00:00"]

1. e4 {[%clk 0:00:00]}  c5 {[%clk 0:00:00]} 2. Nf3 {[%clk 0:00:00]}  e6 {[%clk 0:00:00]} 3. d4 {[%clk 0:00:00]}  cxd4 {[%clk 0:00:00]} 4. Nxd4 {[%clk 0:00:00]}  a6 {[%clk 0:00:00]} 5. Bd3 {[%clk 0:00:00]}  g6 {[%clk 0:00:00]} 6. O-O {[%clk 0:00:00]}  Bg7 {[%clk 0:00:00]} 7. Nb3 {[%clk 0:00:00]}  Ne7 {[%clk 0:00:00]} 8. Nc3 {[%clk 0:00:00]}  Nbc6 {[%clk 0:00:00]} 9. Bf4 {[%clk 0:00:00]}  d5 {[%clk 0:00:00]} 10. exd5 {[%clk 0:00:00]}  Nxd5 {[%clk 0:00:00]} 11. Nxd5 {[%clk 0:00:00]}  Qxd5 {[%clk 0:00:00]} 12. c4 {[%clk 0:00:00]}  Qd8 {[%clk 0:00:00]} 13. Qe2 {[%clk 0:00:00]}  b6 {[%clk 0:00:00]} 14. Rad1 {[%clk 0:00:00]}  Qe7 {[%clk 0:00:00]} 15. Be4 {[%clk 0:00:00]}  Bb7 {[%clk 0:00:00]} 16. Bd6 {[%clk 0:00:00]}  Qf6 {[%clk 0:00:00]} 17. Rd2 {[%clk 0:00:00]}  Rd8 {[%clk 0:00:00]} 18. Rfd1 {[%clk 0:00:00]}  Rd7 {[%clk 0:00:00]} 19. c5 {[%clk 0:00:00]}  Qd8 {[%clk 0:00:00]} 20. cxb6 {[%clk 0:00:00]}  Qxb6 {[%clk 0:00:00]} 21. Bc5 {[%clk 0:00:00]}  Rxd2 {[%clk 0:00:00]} 22. Qxd2 {[%clk 0:00:00]}  Qc7 {[%clk 0:00:00]} 23. Bd6 {[%clk 0:00:00]}  Qb6 {[%clk 0:00:00]} 24. Nc5 {[%clk 0:00:00]}  Ba8 {[%clk 0:00:00]} 25. b3 {[%clk 0:00:00]}  Nd4 {[%clk 0:00:00]} 26. Bxa8 {[%clk 0:00:00]}  Qxd6 {[%clk 0:00:00]} 27. Be4 {[%clk 0:00:00]}  Qxc5 {[%clk 0:00:00]} 28. Rc1 {[%clk 0:00:00]}  Qd6 {[%clk 0:00:00]} 0-1


[Site "https://www.chess.com"]

[Event "Titled Tuesday Blitz August 16 Early 2022"]
[White "Ibarra Jerez, Jose Carlos"]
[Black "Yurovskykh, Oleksandr"]
[WhiteFideId "2226332"]
[BlackFideId "14134020"]
[WhiteElo "2628"]
[BlackElo "2292"]
[Result "1-0"]
[Round "03"]
[TimeControl "180+1"]
[Date "2022.08.16"]
[WhiteClock "0:01:55"]
[BlackClock "0:00:31"]

1. e4 {[%clk 0:02:58]}  d5 {[%clk 0:02:30]} 2. exd5 {[%clk 0:02:57]}  Qxd5 {[%clk 0:02:30]} 3. Nc3 {[%clk 0:02:57]}  Qd8 {[%clk 0:02:30]} 4. Bc4 {[%clk 0:02:56]}  c5 {[%clk 0:02:29]} 5. Nf3 {[%clk 0:02:54]}  Nc6 {[%clk 0:02:30]} 6. O-O {[%clk 0:02:47]}  Nf6 {[%clk 0:02:29]} 7. h3 {[%clk 0:02:45]}  e6 {[%clk 0:02:27]} 8. Re1 {[%clk 0:02:44]}  Be7 {[%clk 0:02:26]} 9. b3 {[%clk 0:02:45]}  O-O {[%clk 0:02:26]} 10. Bb2 {[%clk 0:02:46]}  b6 {[%clk 0:02:27]} 11. a4 {[%clk 0:02:34]}  Bb7 {[%clk 0:02:26]} 12. d3 {[%clk 0:02:35]}  Rc8 {[%clk 0:02:22]} 13. Qe2 {[%clk 0:02:31]}  a6 {[%clk 0:02:03]} 14. Rad1 {[%clk 0:02:28]}  Nd4 {[%clk 0:02:03]} 15. Nxd4 {[%clk 0:02:29]}  cxd4 {[%clk 0:02:04]} 16. Ne4 {[%clk 0:02:29]}  Qd7 {[%clk 0:01:54]} 17. b4 {[%clk 0:02:16]}  b5 {[%clk 0:01:18]} 18. axb5 {[%clk 0:02:14]}  axb5 {[%clk 0:01:19]} 19. Bb3 {[%clk 0:02:12]}  Bxb4 {[%clk 0:00:55]} 20. Nxf6+ {[%clk 0:02:12]}  gxf6 {[%clk 0:00:56]} 21. Qg4+ {[%clk 0:02:12]}  Kh8 {[%clk 0:00:56]} 22. Bxd4 {[%clk 0:02:13]}  Bc3 {[%clk 0:00:50]} 23. Bxc3 {[%clk 0:02:10]}  Rxc3 {[%clk 0:00:51]} 24. Qh4 {[%clk 0:02:06]}  Qd8 {[%clk 0:00:46]} 25. Re3 {[%clk 0:02:01]}  f5 {[%clk 0:00:45]} 26. Qb4 {[%clk 0:01:57]}  Qf6 {[%clk 0:00:31]} 27. Qxf8# {[%clk 0:01:55]} 1-0


[Site "https://www.chess.com"]

[Event "Titled Tuesday Blitz August 16 Early 2022"]
[White "Kezin, Roman"]
[Black "Golubev, Mikhail"]
[WhiteFideId "24124621"]
[BlackFideId "14100983"]
[WhiteElo "2551"]
[BlackElo "2374"]
[Result "1-0"]
[Round "03"]
[TimeControl "180+2"]
[Date "2022.08.18"]
[WhiteClock "0:00:00"]
[BlackClock "0:00:00"]

1. b3 {[%clk 0:00:00]}  d6 {[%clk 0:00:00]} 2. Bb2 {[%clk 0:00:00]}  Nd7 {[%clk 0:00:00]} 3. e4 {[%clk 0:00:00]}  c5 {[%clk 0:00:00]} 4. Nc3 {[%clk 0:00:00]}  Ngf6 {[%clk 0:00:00]} 5. f4 {[%clk 0:00:00]}  b6 {[%clk 0:00:00]} 6. Bc4 {[%clk 0:00:00]}  Bb7 {[%clk 0:00:00]} 7. Qe2 {[%clk 0:00:00]}  e6 {[%clk 0:00:00]} 8. Nf3 {[%clk 0:00:00]}  a6 {[%clk 0:00:00]} 9. a4 {[%clk 0:00:00]}  Qc7 {[%clk 0:00:00]} 10. g4 {[%clk 0:00:00]}  Be7 {[%clk 0:00:00]} 11. g5 {[%clk 0:00:00]}  Nxe4 {[%clk 0:00:00]} 12. Nxe4 {[%clk 0:00:00]}  d5 {[%clk 0:00:00]} 13. Bxg7 {[%clk 0:00:00]}  dxe4 {[%clk 0:00:00]} 14. Ne5 {[%clk 0:00:00]}  Rg8 {[%clk 0:00:00]} 15. Nxd7 {[%clk 0:00:00]}  Rxg7 {[%clk 0:00:00]} 16. Nf6+ {[%clk 0:00:00]}  Bxf6 {[%clk 0:00:00]} 17. gxf6 {[%clk 0:00:00]}  Rg6 {[%clk 0:00:00]} 18. O-O-O {[%clk 0:00:00]}  Qxf4 {[%clk 0:00:00]} 19. Kb1 {[%clk 0:00:00]}  Qxf6 {[%clk 0:00:00]} 20. Rhf1 {[%clk 0:00:00]}  Qe5 {[%clk 0:00:00]} 21. Qf2 {[%clk 0:00:00]}  f5 {[%clk 0:00:00]} 22. Qh4 {[%clk 0:00:00]}  b5 {[%clk 0:00:00]} 23. axb5 {[%clk 0:00:00]}  axb5 {[%clk 0:00:00]} 24. Bxb5+ {[%clk 0:00:00]}  Kf7 {[%clk 0:00:00]} 25. c3 {[%clk 0:00:00]}  e3 {[%clk 0:00:00]} 26. Qxh7+ {[%clk 0:00:00]}  Rg7 {[%clk 0:00:00]} 27. Qh5+ {[%clk 0:00:00]}  Kg8 {[%clk 0:00:00]} 28. Bc4 {[%clk 0:00:00]}  Qe4+ {[%clk 0:00:00]} 29. Kb2 {[%clk 0:00:00]}  Qe5 {[%clk 0:00:00]} 30. Rxf5 {[%clk 0:00:00]}  Qd6 {[%clk 0:00:00]} 31. Rg5 {[%clk 0:00:00]}  Qe7 {[%clk 0:00:00]} 32. Rdg1 {[%clk 0:00:00]} 1-0


[Site "https://www.chess.com"]